Cogmind - Beta 14 @@@ ROGUE MODE // 2024.08.30 @ 22:10:05 Player: Minty Result: Destroyed by G-67 Veteran with Plasma Rifle Performance ------------- Evolutions (6) 3000 Regions Visited (16) 3200 Robots Destroyed (119) 595 Value Destroyed (8907) 8907 Prototype IDs (33) 660 Alien Tech Used (0) 0 Bonus (9999) 9999 TOTAL SCORE: 26361 Bonus ------- High Alert Combat Kills 2024 Follower Combat Kills 4719 Entered Garrisons 1000 Used RIF Installer 2000 Entered DSFs 500 Friendly Fire -244 Cogmind --------- Core Integrity 0/1150 Matter 300/300 Energy 98/100 System Corruption 9% Temperature Cool (0) Movement Core (50) Location -4/Extension Parts ------- > --- POWER (1) -------- (None) > --- PROPULSION (6) --- (None) > --- UTILITY (10) ----- Targeting Computer Advanced System Shield Relay Coupler [Heavy] (3) > --- WEAPON (2) ------- (None) > --- INVENTORY (5) ---- Enhanced Nova Cannon Enhanced Nova Cannon KE Penetrator Improved Remote Datajack Plasma Lance Peak State ------------ > --- POWER ------------ Light Quantum Reactor > --- PROPULSION ------- Improved Cesium-ion Thruster Improved Surge Thruster Impulse Thruster Array Impulse Thruster Array > --- UTILITY ---------- Targeting Computer Melee Analysis Suite Experimental Reaction Control System Advanced Cloaking Device Advanced Hardlight Generator Relay Coupler [NC] Relay Coupler [Swarmer] Relay Coupler [Heavy] System Restoration Module > --- WEAPON ----------- Plasma Lance > --- INVENTORY -------- Micro Nuclear Core Heavy Neutron Cannon Enhanced Nova Cannon Enhanced Nova Cannon Improved Remote Datajack [Rating: 106] Favorites ----------- Power Light Nuclear Core Engine Ion Engine Power Core Light Nuclear Core Reactor Quantum Reactor Propulsion VTOL Module Treads Light Treads Leg Aluminum Leg Wheel Wheel Hover Unit Antigrav System Flight Unit VTOL Module Utility Relay Coupler [NC] Device Experimental Reaction Control System Storage Medium Storage Unit Processor Advanced Targeting Computer Hackware Relay Coupler [NC] Protection Improved Weapon Shielding Weapon Particle Cannon Energy Gun Particle Gun Energy Cannon Particle Cannon Ballistic Gun KE Penetrator Ballistic Cannon Hypervelocity Gauss Cannon Launcher Heavy Rocket Launcher Special Weapon Remote Datajack Impact Weapon Flail Slashing Weapon Ripper Piercing Weapon Plasma Lance Build | -11 -10 -10 -8 -8 -7 -7 -7 -7 -6 -6 -5 -5 -5 -5 -4 -4 ------- Run | Yrd Mat Sub Mat Gar Fac Gar Fac Gar Fac DSF Fac Gar Fac Gar Fac Ext Slots Evolved 12 | . . . 4 . 2 . . . 2 . 2 . . . 2 . Power . | . . . . . . . . . . . . . . . . . Propulsion 4 | . . . 3 . . . . . 1 . . . . . . . Utility 8 | . . . 1 . 2 . . . 1 . 2 . . . 2 . Weapon . | . . . . . . . . . . . . . . . . . Parts Attached 313 | . 20 16 15 33 33 28 18 12 . 5 1 61 8 21 20 22 Power 22 | . 1 3 1 2 3 2 1 . . . . 3 . 2 3 1 Engine 8 | . 1 3 . 2 1 1 . . . . . . . . . . Core 10 | . . . 1 . 2 1 1 . . . . 3 . . 1 1 Reactor 4 | . . . . . . . . . . . . . . 2 2 . Propulsion 86 | . 6 8 8 20 13 5 5 . . . . 13 1 1 3 3 Treads 9 | . 2 . . 5 . 1 . . . . . . . . . 1 Leg 8 | . . . . 3 . 4 1 . . . . . . . . . Wheel 12 | . 4 8 . . . . . . . . . . . . . . Hover 5 | . . . 2 1 1 . . . . . . 1 . . . . Flight 52 | . . . 6 11 12 . 4 . . . . 12 1 1 3 2 Utility 92 | . 3 2 1 2 10 8 7 6 . 4 . 24 1 14 5 5 Device 19 | . 3 . . . 1 . 1 1 . 2 . 2 . 4 3 2 Storage 1 | . . 1 . . . . . . . . . . . . . . Processor 14 | . . . 1 1 2 . . 1 . 1 . 5 . 2 1 . Hackware 49 | . . . . 1 7 6 4 4 . 1 . 17 . 6 1 2 Protection 9 | . . 1 . . . 2 2 . . . . . 1 2 . 1 Artifact . | . . . . . . . . . . . . . . . . . Weapon 113 | . 10 3 5 9 7 13 5 6 . 1 1 21 6 4 9 13 Energy Gun 20 | . . . 1 2 2 5 2 3 . . . 2 . 1 1 1 Energy Cannon 13 | . 2 3 . . . . . . . . . . . 2 3 3 Ballistic Gun 18 | . 4 . . . 1 . . 2 . . . 6 3 1 . 1 Ballistic Cannon 2 | . . . . . . . . . . . . . . . . 2 Launcher 7 | . . . . 2 2 3 . . . . . . . . . . Special Weapon 36 | . . . 1 1 2 5 3 1 . 1 1 12 3 . 3 3 Impact Weapon 7 | . 4 . 2 1 . . . . . . . . . . . . Slashing Weapon 4 | . . . 1 3 . . . . . . . . . . . . Piercing Weapon 6 | . . . . . . . . . . . . 1 . . 2 3 Special Melee Weapon . | . . . . . . . . . . . . . . . . . Unidentified Prototypes 7 | . . . 1 . 2 . 1 . . . . 3 . . . . Corrupted Parts 2 | . . . . . . . 1 . . . . . . . 1 . System Corruption 6 | . . . . . . . 2 . . . . . . . 4 . Parts Lost 71 | . 2 4 . 7 4 10 . 3 . 3 . 15 2 1 7 13 Power 9 | . . 2 . 1 . 2 . 1 . . . . . . 1 2 Propulsion 36 | . 1 2 . 6 3 5 . . . 1 . 7 2 1 2 6 Utility 21 | . 1 . . . 1 1 . 2 . 2 . 7 . . 4 3 Weapon 5 | . . . . . . 2 . . . . . 1 . . . 2 Highest Loss Streak 7 | . 1 1 . 3 3 7 . 2 . 4 . 7 2 1 4 5 To Critical Strikes 1 | . . . . . . . . . . . . . . . 1 . Average Slot Usage (%) 83 | . 94 96 82 91 96 71 90 86 . 61 45 69 81 81 67 52 Engine 4 | . 14 11 3 6 . 1 6 . . . . . . . . . Core 2 | . . . 5 2 6 3 . 6 . . . 4 5 1 . 1 Treads 3 | . 23 . . 3 . 1 6 . . . . . . . . . Leg 3 | . 3 . . 5 . 10 21 . . . . . . . . . Wheel 4 | . . 26 10 . . . . . . . . . . . . . Flight 14 | . . . 18 29 37 6 3 30 . 21 17 16 16 18 16 12 Device 3 | . 8 9 . . . . . 1 . 4 5 2 5 5 11 2 Storage 6 | . 14 14 9 9 7 6 7 7 . 1 . . . . . . Processor 4 | . . . 7 13 7 5 . 4 . 8 5 7 . 1 6 8 Hackware 15 | . . . . 4 19 17 24 18 . 18 11 27 35 31 19 15 Protection 1 | . . 4 7 . . 2 2 . . . . . 4 4 1 . Energy Gun 3 | . . . . 6 6 10 13 4 . 2 . . . 1 . . Energy Cannon 4 | . 1 25 14 . . . . . . . . . . 2 2 1 Ballistic Gun 3 | . 20 . . . . . . 9 . . . 5 6 1 . 1 Special Weapon 1 | . . . . 2 6 . 1 . . 2 3 . 3 4 1 . Impact Weapon 1 | . 6 2 1 1 . . . . . . . . . . . . Peak Build Rating 106 | . 11 16 32 32 40 39 46 52 49 54 58 92 92 97 106 79 Average Rating 41 | . 7 12 23 27 35 26 29 47 49 43 56 69 91 90 91 56 On Entrance 44 | 6 6 11 15 27 28 39 28 44 49 49 52 58 92 92 87 70 Naked Turns . | . . . . . . . . . . . . . . . . . Heaviest Build 50 | 13 20 31 31 26 26 34 34 24 18 17 6 26 28 42 41 50 Greatest Support 60 | 20 40 32 26 60 22 30 45 24 24 24 18 42 40 42 44 30 Greatest Overweight (x) 8 | . . 2 5 8 1 3 5 . . . . 1 . 1 1 2 Average Overweight (x) . | . . . . . . 1 . . . . . . . . . . Largest Inventory Capacity 10 | . 8 10 10 10 10 10 10 10 10 10 5 5 5 5 5 5 Average Capacity 7 | . 8 9 10 10 10 10 10 10 10 5 5 5 5 5 5 5 Most Carried 10 | . 8 10 10 10 10 10 10 10 10 10 5 5 5 5 5 5 Average Carried 7 | . 7 9 9 9 9 9 9 9 10 5 5 4 5 4 4 4 Final Capacity 10 | 8 8 10 10 10 10 10 10 10 10 5 5 5 5 5 5 5 Final Carried 10 | 6 8 10 10 10 10 10 9 10 10 5 5 5 5 5 5 5 Class Distribution -------------------- 26% | Mutant 22% | Scavenger-Mutant 12% | Commander-Mutant 9% | Bothacker-Sprinter 7% | Scavenger-Sprinter 6% | Bothacker-Mutant 3% | Scout 3% | Commander-Sprinter Dominant Class ---------------- Mutant | -10/Materials Mutant | -10/Subcaves Scavenger-Mutant | -8/Materials Scavenger-Mutant | -8/Garrison Bothacker-Sprinter | -7/Factory Scavenger-Mutant | -7/Garrison Scavenger-Mutant | -7/Factory Bothacker-Sprinter | -7/Garrison Bothacker-Sprinter | -6/Factory Bothacker-Sprinter | -6/DSF Bothacker-Sprinter | -5/Factory Bothacker-Mutant | -5/Garrison Commander-Mutant | -5/Factory Commander-Mutant | -5/Garrison Commander-Mutant | -4/Factory Scavenger-Sprinter | -4/Extension Resources | -11 -10 -10 -8 -8 -7 -7 -7 -7 -6 -6 -5 -5 -5 -5 -4 -4 ----------- Run | Yrd Mat Sub Mat Gar Fac Gar Fac Gar Fac DSF Fac Gar Fac Gar Fac Ext Matter Collected 5552 | 200 302 169 123 449 614 370 310 300 . . . 1294 198 428 274 521 Remotely . | . . . . . . . . . . . . . . . . . Salvage Created 5581 | . 449 758 177 406 569 586 86 384 . . . 871 122 194 104 875 Parts 244 | . 17 36 4 27 30 19 6 26 . . . 34 9 7 5 24 Haulers Intercepted 2 | . 1 . 1 . . . . . . . . . . . . . Recyclers Shooed 1 | . . . . . . . . . . . . . . . . 1 Parts Field Recycled . | . . . . . . . . . . . . . . . . . Retrieved Matter . | . . . . . . . . . . . . . . . . . Parts Self-Destructed 10 | . . 10 . . . . . . . . . . . . . . Prevented . | . . . . . . . . . . . . . . . . . Kills | -11 -10 -10 -8 -8 -7 -7 -7 -7 -6 -6 -5 -5 -5 -5 -4 -4 ------- Run | Yrd Mat Sub Mat Gar Fac Gar Fac Gar Fac DSF Fac Gar Fac Gar Fac Ext Combat Hostiles Destroyed 106 | . 8 12 1 17 12 19 1 7 . . . 15 2 4 1 7 Melee 13 | . 1 2 1 3 . . . . . . . 1 . . . 5 Guns 46 | . 5 . . 6 6 6 1 6 . . . 13 2 1 . . Cannons 13 | . . 10 . . . . . . . . . . . 1 1 1 AOE 26 | . . . . 8 4 13 . . . . . . . 1 . . Classes Destroyed 22 | . 4 2 1 4 7 . 1 . . . . 2 . 1 . . Worker 1 | . . . . . 1 . . . . . . . . . . . Builder 1 | . . . . . 1 . . . . . . . . . . . Hauler 2 | . 1 . 1 . . . . . . . . . . . . . Recycler 5 | . 1 . 1 . 1 . . . . . . . . . . 2 Mechanic 1 | . . . . . 1 . . . . . . . . . . . Operator 2 | . . . . . . . 1 . . . . . . . 1 . Swarmer 26 | . . . . 8 5 6 . . . . . 6 . 1 . . Cutter 1 | . . . . . 1 . . . . . . . . . . . Grunt 30 | . 5 2 . 5 2 11 . 2 . . . 1 . 1 . 1 Brawler 6 | . . . . . 1 1 . . . . . 3 . . 1 . Duelist 2 | . . . . 1 . 1 . . . . . . . . . . Sentry 13 | . . . . . 2 . 1 2 . . . 2 1 . . 5 Demolisher 1 | . . . . 1 . . . . . . . . . . . . Specialist 2 | . . . . . . . . . . . . 1 . 1 . . Hunter 3 | . . . 1 . . . . . . . . 1 . . . 1 Programmer 6 | . . . . 2 . . . 3 . . . . 1 . . . Heavy 1 | . . . . . 1 . . . . . . . . . . . Behemoth 1 | . . . . . . . . . . . . . . 1 . . Striker 1 | . . . . . . . . . . . . 1 . . . . Artisan 2 | . . 2 . . . . . . . . . . . . . . Cobbler 1 | . . 1 . . . . . . . . . . . . . . Subdweller 13 | . 3 10 . . . . . . . . . . . . . . Savage 1 | . . . . . . . . . . . . . . . . 1 Best Kill Streak 6 | . 3 2 2 5 6 6 1 2 . . . 4 1 1 1 3 Combat Bots Only 6 | . 3 2 1 5 3 6 1 2 . . . 4 1 1 1 3 Max Kills in Single Turn 4 | . 1 1 1 3 4 3 1 1 . . . 1 1 1 1 2 Gunslinging . | . . . . . . . . . . . . . . . . . Exploded 3 | . . . . 3 2 3 . . . . . . . 1 . . Melee 1 | . 1 1 1 1 . . . . . . . 1 . . . 1 Uniques/NPCs Destroyed . | . . . . . . . . . . . . . . . . . Combat | -11 -10 -10 -8 -8 -7 -7 -7 -7 -6 -6 -5 -5 -5 -5 -4 -4 -------- Run | Yrd Mat Sub Mat Gar Fac Gar Fac Gar Fac DSF Fac Gar Fac Gar Fac Ext Hostile Shots Fired 943 | . 50 39 2 65 65 74 12 138 . 3 . 172 6 32 109 176 Missed 421 | . 15 13 1 15 35 22 7 63 . 2 . 75 4 17 71 81 Damage Taken 9095 | . 495 584 17 917 478 973 43 739 . 52 . 1878 60 367 730 1762 Core 3277 | . 43 200 . 243 183 262 . 239 . . . 856 6 76 193 976 Absorbed by Shields 329 | . 43 . . 10 . 75 . . . . . 27 . . 37 137 Redirected to Shielding 117 | . . . . . . . . . . . . . . 63 54 . Regen/Repaired (Parts) 177 | . . . . . . . 100 . . . . . . 77 . . Core Remaining (%) 44 | 100 . 2 . 55 . . . 2 . 100 . . . 6 . . Volleys Fired 586 | . 27 81 4 44 78 40 17 41 . 1 . 118 18 46 21 50 Largest 3 | . 2 2 2 1 2 3 2 2 . 1 . 2 2 2 1 2 Hottest 240 | . 136 136 148 61 101 169 130 83 . 5 . 66 66 150 120 240 Shots Fired 814 | . 54 156 8 44 79 71 18 77 . 1 . 150 22 52 21 61 Gun 397 | . 42 . . 36 38 52 11 75 . . . 105 10 14 . 14 Cannon 230 | . 12 156 8 . . . . . . . . . . 12 9 33 Launcher 23 | . . . . 8 4 11 . . . . . . . . . . Special 164 | . . . . . 37 8 7 2 . 1 . 45 12 26 12 14 Kinetic 253 | . 42 . . 8 4 2 . 52 . . . 96 10 8 . 31 Thermal 355 | . 12 156 8 36 38 52 11 . . . . 5 . 18 9 10 Explosive 9 | . . . . . . 9 . . . . . . . . . . Electromagnetic 38 | . . . . . . . . 23 . . . 9 . . . 6 Robot Hit Streak 16 | . 5 14 14 10 8 7 9 12 . 3 . 16 4 8 11 10 Robot Miss Streak 5 | . 2 2 . 2 4 4 2 4 . . . 4 2 5 1 4 Penetration Max 1 | . . . . . . . . . . . . 1 . . . 1 Secondary Targets 4 | . 3 . . . . 1 . . . . . . . . . . Max Gunslinging Chain 1 | . 1 . . . . 1 . . . . . . . . . . Shots Hit Robots 540 | . 38 95 9 32 52 39 13 54 . 1 . 91 15 25 21 55 Core Hits 206 | . 15 30 3 23 18 39 4 21 . . . 25 4 2 4 18 Critical Kills 6 | . 1 . . . . . . . . . . 2 . 2 . 1 Critical Parts Destroyed 8 | . . . . . . . . 1 . . . 3 . . . 4 Critical Strikes 24 | . 1 . . 4 3 . . 2 . . . 7 . 2 . 5 Burn 5 | . . . . 2 3 . . . . . . . . . . . Meltdown 1 | . . . . . . . . . . . . . . 1 . . Destroy 13 | . 1 . . . . . . 1 . . . 5 . 1 . 5 Corrupt 2 | . . . . . . . . 1 . . . 1 . . . . Sever 3 | . . . . 2 . . . . . . . 1 . . . . Melee Attacks 73 | . 7 8 2 23 . . . . . . . 4 . . 9 20 Impact 21 | . 7 8 2 4 . . . . . . . . . . . . Slashing 19 | . . . . 19 . . . . . . . . . . . . Piercing 33 | . . . . . . . . . . . . 4 . . 9 20 Sneak Attacks 9 | . 1 . . 2 . . . . . . . . . . 2 4 Combat Hostiles 6 | . . . . 2 . . . . . . . . . . 1 3 Follow-up Attacks 1 | . . 1 . . . . . . . . . . . . . . Damage Inflicted 12613 | . 701 1792 242 1250 1449 1847 125 948 . . . 1494 133 294 685 1653 Guns 4446 | . 298 . . 485 460 470 122 948 . . . 1338 133 79 . 113 Cannons 2982 | . 183 1676 163 . . . . . . . . . . 215 212 533 Explosions 2806 | . . . . 440 989 1377 . . . . . . . . . . Melee 2343 | . 220 116 79 325 . . . . . . . 123 . . 473 1007 Ramming 3 | . . . . . . . 3 . . . . . . . . . Kinetic 3943 | . 298 . . 440 406 353 . 732 . . . 1193 133 50 . 338 Thermal 4865 | . 183 1676 163 485 1022 470 122 . . . . 33 . 244 212 255 Explosive 1024 | . . . . . . 1024 . . . . . . . . . . Electromagnetic 435 | . . . . . 21 . . 216 . . . 145 . . . 53 Impact 456 | . 220 116 79 41 . . . . . . . . . . . . Slashing 284 | . . . . 284 . . . . . . . . . . . . Piercing 1603 | . . . . . . . . . . . . 123 . . 473 1007 Highest Corruption 10 | . . . . 4 . 3 3 8 . . . 9 10 10 4 9 Average Corruption 5 | . . . . 3 . 3 2 5 . . . 6 9 10 4 4 Corruption Purged 3 | . . . . . . . 3 . . . . . . . . . Corruption Blocked . | . . . . . . . . . . . . . . . . . Effects 90 | . . . . 3 . 3 6 9 . . . 27 7 24 2 9 Message Errors 24 | . . . . 1 . 1 1 2 . . . 9 2 5 1 2 Matter Fused 20 | . . . . 1 . 1 2 3 . . . 4 2 5 . 2 Heat Flow Errors 12 | . . . . 1 . . . 2 . . . 4 1 3 1 . Energy Discharges 11 | . . . . . . . 2 2 . . . 3 2 1 . 1 Parts Rejected 5 | . . . . . . 1 . . . . . 1 . 3 . . Data Loss (minor) 9 | . . . . . . . . . . . . 3 . 3 . 3 Data Loss (major) 2 | . . . . . . . 1 . . . . 1 . . . . Misfires 4 | . . . . . . . . . . . . 1 . 3 . . Alerts 2 | . . . . . . . . . . . . . . 1 . 1 Weapon Failures 1 | . . . . . . . . . . . . 1 . . . . Overload Shots . | . . . . . . . . . . . . . . . . . Overflow Damage 402 | . . 13 . 48 197 75 . . . . . . . . 27 42 Projectiles 13 | . . 13 . . . . . . . . . . . . . . Explosions 283 | . . . . 11 197 75 . . . . . . . . . . Melee 106 | . . . . 37 . . . . . . . . . . 27 42 Knockbacks 5 | . . . 1 . . . . . . . . . . . . 4 Impact 1 | . . . 1 . . . . . . . . . . . . . Kinetic 4 | . . . . . . . . . . . . . . . . 4 Secondary . | . . . . . . . . . . . . . . . . . Self-Inflicted Damage 309 | . . . . 30 . 279 . . . . . . . . . . Shots 8 | . . . . 1 . 7 . . . . . . . . . . Rammed . | . . . . . . . . . . . . . . . . . Targets Rammed 1 | . . . . . . . 1 . . . . . . . . . Kicked 1 | . . . . . . . 1 . . . . . . . . . Crushed . | . . . . . . . . . . . . . . . . . Highest Temperature 386 | . 308 302 270 182 178 333 120 301 . . . 280 138 335 280 386 Average Temperature 80 | . 134 49 87 48 33 95 62 124 . . . 82 49 112 140 110 Received Heat Transfer 1442 | . 194 411 . 81 54 244 6 129 . . . 117 18 6 12 170 Effects 6 | . . . . . . 1 . 1 . . . . . . 2 2 Energy Bleed 2 | . . . . . . 1 . 1 . . . . . . . . Interference 4 | . . . . . . . . . . . . . . . 2 2 Siege Activations . | . . . . . . . . . . . . . . . . . Robots Corrupted 4 | . 2 . . . . . . 1 . . . . . . . 1 Combat Hostiles 4 | . 2 . . . . . . 1 . . . . . . . 1 Parts Fried 6 | . 2 . . 1 . . . 2 . . . . . . . 1 Impact Corruptions 3 | . 2 . . 1 . . . . . . . . . . . . Robots Melted 4 | . . . . . 2 . . . . . . 1 . 1 . . Combat Hostiles 4 | . . . . . 2 . . . . . . 1 . 1 . . Parts Melted 24 | . . 5 1 2 7 2 . . . . . 1 . 5 . 1 Heat Transferred 8154 | . 333 3034 259 999 1404 1052 296 . . . . 74 . 296 185 222 Parts Sabotaged . | . . . . . . . . . . . . . . . . . Parts Stolen . | . . . . . . . . . . . . . . . . . Parts Stripped . | . . . . . . . . . . . . . . . . . Power Chain Reactions . | . . . . . . . . . . . . . . . . . Alert | -11 -10 -10 -8 -8 -7 -7 -7 -7 -6 -6 -5 -5 -5 -5 -4 -4 ------- Run | Yrd Mat Sub Mat Gar Fac Gar Fac Gar Fac DSF Fac Gar Fac Gar Fac Ext Peak Influence 2230 | . 153 . 61 868 1021 1419 957 964 487 340 170 1931 1342 2230 1691 1355 Initial 1170 | . . . . 39 455 714 744 655 487 340 170 119 1008 939 1170 791 Average 846 | . 34 . 6 562 688 1121 808 842 487 321 170 939 1216 1754 1403 1148 Maximum Alert Level 5 | . . . . 3 3 4 3 3 2 1 . 5 4 5 5 4 Low Security (%) 16 | . 100 . 100 6 . . . . . . 100 10 . . . . Level 1 10 | . . . . 33 1 . . . . 100 . 23 . . . . Level 2 11 | . . . . 24 45 . . 8 100 . . 12 . . . . Level 3 31 | . . . . 35 53 50 100 91 . . . 9 33 11 . 25 Level 4 20 | . . . . . . 49 . . . . . 23 66 20 68 74 Level 5 10 | . . . . . . . . . . . . 21 . 68 31 . High Security . | . . . . . . . . . . . . . . . . . Max Security . | . . . . . . . . . . . . . . . . . Squads Dispatched 23 | . 2 . 1 . 7 . 3 . . . . . 2 . 5 3 Investigation 8 | . 1 . 1 . 2 . 2 . . . . . . . . 2 Extermination 2 | . . . . . 1 . . . . . . . . . 1 . Reinforcement 9 | . 1 . . . 2 . . . . . . . 2 . 4 . Assault 3 | . . . . . 2 . . . . . . . . . . 1 Garrison 1 | . . . . . . . 1 . . . . . . . . . Intercept . | . . . . . . . . . . . . . . . . . Searches Triggered . | . . . . . . . . . . . . . . . . . Construction Impeded . | . . . . . . . . . . . . . . . . . Haulers Reinforced 1 | . . . . . . . . . . . . . 1 . . . Active Scanning Responses 1 | . . . . . . . . . . . . 1 . . . . Cargo Convoy Interrupts . | . . . . . . . . . . . . . . . . . Alert ID Control Effect 10 | . . . . . . . . . . . . 1 1 4 4 . Stealth | -11 -10 -10 -8 -8 -7 -7 -7 -7 -6 -6 -5 -5 -5 -5 -4 -4 --------- Run | Yrd Mat Sub Mat Gar Fac Gar Fac Gar Fac DSF Fac Gar Fac Gar Fac Ext Distress Signals 6 | . 2 . . . . . 1 . . . . 1 . . 1 1 Communications Jammed 5 | . . . . . 5 . . . . . . . . . . . Distress Signals . | . . . . . . . . . . . . . . . . . Times Spotted 316 | . 12 12 1 26 37 30 12 10 . 1 . 57 11 43 30 34 Peak Tracking Total 14 | . 3 2 1 5 7 4 3 5 . 1 . 10 4 12 11 14 Tactical Retreats 24 | . 2 . . 4 3 1 . . . 1 . 6 1 5 1 . Traps | -11 -10 -10 -8 -8 -7 -7 -7 -7 -6 -6 -5 -5 -5 -5 -4 -4 ------- Run | Yrd Mat Sub Mat Gar Fac Gar Fac Gar Fac DSF Fac Gar Fac Gar Fac Ext Traps Triggered 11 | . 1 . . 2 . 2 . . . . . 5 . 1 . . Indirectly . | . . . . . . . . . . . . . . . . . Trap Hack Attempts . | . . . . . . . . . . . . . . . . . Triggered . | . . . . . . . . . . . . . . . . . Disarmed . | . . . . . . . . . . . . . . . . . Reprogrammed . | . . . . . . . . . . . . . . . . . Reused 3 | . . . . . . . . . . . . 3 . . . . Traps Extracted . | . . . . . . . . . . . . . . . . . Installed 9 | . . . . . 6 . . . . . . 3 . . . . Triggered 3 | . . . . . . . . . . . . 3 . . . . Most Traps Carried 3 | . . . . . 1 . . . . 3 3 3 . . . . Objects Rigged 7 | . . . . . 7 . . . . . . . . . . . Exploded 1 | . . . . . 1 . . . . . . . . . . . Machines | -11 -10 -10 -8 -8 -7 -7 -7 -7 -6 -6 -5 -5 -5 -5 -4 -4 ---------- Run | Yrd Mat Sub Mat Gar Fac Gar Fac Gar Fac DSF Fac Gar Fac Gar Fac Ext Machines Disabled 52 | . 1 1 . 4 14 2 7 3 . . . 10 . 5 2 3 Max in Single Turn 5 | . 1 1 . 1 5 1 . 1 . . . 2 . 1 . 1 Garrison Relay 18 | . . . . 4 . 2 . 2 . . . 7 . 3 . . Phase Generator 1 | . . . . . . . . . . . . 1 . . . . Machines Repaired . | . . . . . . . . . . . . . . . . . Machines Dismantled 1 | . . . . . . . . . . . . 1 . . . . Machines Sabotaged . | . . . . . . . . . . . . . . . . . Overloaded Fab Kills . | . . . . . . . . . . . . . . . . . Hacking | -11 -10 -10 -8 -8 -7 -7 -7 -7 -6 -6 -5 -5 -5 -5 -4 -4 --------- Run | Yrd Mat Sub Mat Gar Fac Gar Fac Gar Fac DSF Fac Gar Fac Gar Fac Ext Machines Accessed 50 | . 5 1 3 1 10 3 6 2 1 . 1 3 3 2 2 7 Terminals 36 | . 4 . 1 1 6 3 2 2 1 . . 3 2 2 2 7 Fabricators 3 | . . . . . 2 . 1 . . . . . . . . . Repair Stations 1 | . . . . . . . 1 . . . . . . . . . Recycling Units 2 | . 1 . . . 1 . . . . . . . . . . . Scanalyzers 2 | . . . 1 . . . 1 . . . . . . . . . Garrison Access 5 | . . . 1 . 1 . 1 . . . 1 . 1 . . . Total Hacks 152 | . 17 1 9 3 48 10 21 8 1 . 1 6 5 6 2 14 Successful 83 | . 11 1 6 2 25 2 15 2 1 . 1 3 2 2 2 8 Failed 68 | . 5 . 3 1 23 8 6 6 . . . 3 3 4 . 6 Catastrophic 16 | . 1 . . . 4 3 1 1 . . . 2 1 2 . 1 Database Lockouts 1 | . 1 . . . . . . . . . . . . . . . Manual 62 | . 8 . 4 2 25 3 7 5 . . . 1 3 2 1 1 Terminals 107 | . 13 . 4 3 31 10 5 8 1 . . 6 4 6 2 14 Fabricators 22 | . . . . . 11 . 11 . . . . . . . . . Repair Stations 2 | . . . . . . . 2 . . . . . . . . . Recycling Units 9 | . 4 . . . 5 . . . . . . . . . . . Scanalyzers 6 | . . . 4 . . . 2 . . . . . . . . . Garrison Access 5 | . . . 1 . 1 . 1 . . . 1 . 1 . . . Terminal Hacks 40 | . 6 1 . 2 10 2 1 2 1 . . 3 . 2 2 8 Robot Schematic 2 | . . . . . 2 . . . . . . . . . . . Robot Analysis 1 | . . . . . . . . . . . . . . . . 1 Prototype ID Bank 2 | . 1 . . . 1 . . . . . . . . . . . Open Door 7 | . . . . . . . . 1 . . . 1 . . 1 4 Open DSF 2 | . . . . . . . . . 1 . . . . . 1 . Emergency Access Points 4 | . 1 . . . . 1 . 1 . . . . . 1 . . Terminal Index 2 | . 1 . . . 1 . . . . . . . . . . . Alert Level 3 | . . . . 1 1 . . . . . . . . . . 1 Unreport Threat 3 | . . . . . 3 . . . . . . . . . . . Locate Traps 3 | . 1 . . . 2 . . . . . . . . . . . Dispatch Records 1 | . . . . . . . . . . . . . . . . 1 Reinforcement Status 1 | . 1 . . . . . . . . . . . . . . . Hauler Manifests 1 | . . . . . . . 1 . . . . . . . . . Zone Layout 2 | . 1 . . . . . . . . . . . . . . 1 Garrison Registry 3 | . . . . 1 . . . . . . . 1 . 1 . . Patrol Navigation 1 | . . . . . . . . . . . . 1 . . . . Security Stations 1 | . . . . . . 1 . . . . . . . . . . Derelict Proto ID Bank 1 | . . 1 . . . . . . . . . . . . . . Fabricator Hacks 11 | . . . . . 3 . 8 . . . . . . . . . Network Status 3 | . . . . . 2 . 1 . . . . . . . . . Load Schematic 4 | . . . . . . . 4 . . . . . . . . . Build 4 | . . . . . 1 . 3 . . . . . . . . . Repair Station Hacks . | . . . . . . . . . . . . . . . . . Recycling Unit Hacks 2 | . 1 . . . 1 . . . . . . . . . . . Report Inventory 2 | . 1 . . . 1 . . . . . . . . . . . Scanalyzer 5 | . . . 4 . . . 1 . . . . . . . . . Insert Component 3 | . . . 2 . . . 1 . . . . . . . . . Analyze 2 | . . . 2 . . . . . . . . . . . . . Garrison Access Hacks 5 | . . . 1 . 1 . 1 . . . 1 . 1 . . . Unlock Access 5 | . . . 1 . 1 . 1 . . . 1 . 1 . . . Unauthorized Hacks 20 | . 4 . 1 . 10 . 4 . . . . . 1 . . . Terminals 12 | . 4 . 1 . 4 . 2 . . . . . 1 . . . Botnet 11 | . 4 . 1 . 3 . 2 . . . . . 1 . . . Detonate 1 | . . . . . 1 . . . . . . . . . . . Fabricators 7 | . . . . . 6 . 1 . . . . . . . . . Report 1 | . . . . . 1 . . . . . . . . . . . Prioritize 3 | . . . . . 2 . 1 . . . . . . . . . Liberate 1 | . . . . . 1 . . . . . . . . . . . Fabnet 1 | . . . . . 1 . . . . . . . . . . . Haulers 1 | . . . . . 1 . . . . . . . . . . . Repair Stations 1 | . . . . . . . 1 . . . . . . . . . Patch 1 | . . . . . . . 1 . . . . . . . . . Recycling Units . | . . . . . . . . . . . . . . . . . Scanalyzers . | . . . . . . . . . . . . . . . . . Garrison Access . | . . . . . . . . . . . . . . . . . Data Cores Recovered 1 | . . . . . . . 1 . . . . . . . . . Used . | . . . . . . . . . . . . . . . . . Hacking Detections 41 | . 5 . 2 1 10 3 4 1 . . . 3 2 2 2 6 Full Trace Events 11 | . 1 . 1 . 2 1 1 1 . . . 1 . 1 . 2 Feedback Events . | . . . . . . . . . . . . . . . . . Feedback Blocked 1 | . . . . . . 1 . . . . . . . . . . Robot Schematics Acquired 2 | . . . . . 2 . . . . . . . . . . . Robots Built 10 | . . . . . 1 . 9 . . . . . . . . . Authchips 2 | . . . . . . . 2 . . . . . . . . . Time 232 | . . . . . 58 . 174 . . . . . . . . . Total Robot Build Rating 30 | . . . . . 3 . 27 . . . . . . . . . Part Schematics Acquired 2 | . . . 2 . . . . . . . . . . . . . Parts Built . | . . . . . . . . . . . . . . . . . Authchips . | . . . . . . . . . . . . . . . . . Time . | . . . . . . . . . . . . . . . . . Total Part Build Rating . | . . . . . . . . . . . . . . . . . Parts Repaired . | . . . . . . . . . . . . . . . . . Time . | . . . . . . . . . . . . . . . . . Parts Recycled . | . . . . . . . . . . . . . . . . . Recycled Matter . | . . . . . . . . . . . . . . . . . Retrieved Matter . | . . . . . . . . . . . . . . . . . Retrieved Components . | . . . . . . . . . . . . . . . . . Parts Scanalyzed 2 | . . . 2 . . . . . . . . . . . . . Part Schematics Acquired 2 | . . . 2 . . . . . . . . . . . . . Parts Damaged . | . . . . . . . . . . . . . . . . . Bothacking | -11 -10 -10 -8 -8 -7 -7 -7 -7 -6 -6 -5 -5 -5 -5 -4 -4 ------------ Run | Yrd Mat Sub Mat Gar Fac Gar Fac Gar Fac DSF Fac Gar Fac Gar Fac Ext Used RIF Installer 4 | . . . . 1 . 1 . . . . . 1 . 1 . . Hotswap 1 | . . . . . . . . . . . . . . 1 . . Alert ID Control 1 | . . . . . . . . . . . . 1 . . . . Structural Interface 1 | . . . . . . 1 . . . . . . . . . . Robots Hacked 77 | . . . . . 20 6 5 1 . 1 . 10 8 14 6 6 Non-combat 20 | . . . . . 10 . 3 . . . . . 5 . 1 1 Combat 57 | . . . . . 10 6 2 1 . 1 . 10 3 14 5 5 Robot Hacks Applied 93 | . . . . . 27 6 5 1 . 1 . 10 11 14 9 9 parse_system 10 | . . . . . 1 . . . . 1 . 1 1 2 3 1 no_distress 1 | . . . . . 1 . . . . . . . . . . . generate_echo 4 | . . . . . 2 . . . . . . . 1 . . 1 find_chute 1 | . . . . . 1 . . . . . . . . . . . deconstruct_machine 1 | . . . . . 1 . . . . . . . . . . . map_walls 1 | . . . . . 1 . . . . . . . . . . . find_dsf 1 | . . . . . . . . . . . . . 1 . . . drop_inventory 8 | . . . . . 2 . 3 . . . . . 2 . 1 . find_recycling 1 | . . . . . 1 . . . . . . . . . . . ignore_parts 3 | . . . . . 1 . . . . . . . 1 . . 1 purge_threat 2 | . . . . . 1 . . . . . . . 1 . . . disarm_traps 1 | . . . . . . . . . . . . . 1 . . . summon_haulers 1 | . . . . . 1 . . . . . . . . . . . mark_security 1 | . . . . . 1 . . . . . . . . . . . relay_feed 1 | . . . . . 1 . . . . . . . . . . . link_fov 1 | . . . . . . . . . . . . . . . . 1 scatter_targeting 2 | . . . . . 1 . . . . . . . . 1 . . spike_heat 3 | . . . . . 3 . . . . . . . . . . . amplify_resonance 7 | . . . . . 1 . . . . . . . 1 3 . 2 reboot_system 4 | . . . . . . 1 . . . . . 1 . 1 . 1 overwrite_iff 7 | . . . . . 3 . 1 . . . . . . 1 1 1 formatsys_low 2 | . . . . . 1 . . . . . . . 1 . . . formatsys_high 30 | . . . . . 3 5 1 1 . . . 8 1 6 4 1 Relay Couplers Released 72 | . . . . 17 . 7 . 8 . . . 29 . 11 . . Machine Destruction 72 | . . . . 17 . 7 . 8 . . . 29 . 11 . . Attached 42 | . . . . 1 6 6 . 4 . 1 . 17 . 6 1 . Fabnet Peak Effective % 3 | . . . . . . . . . 3 3 1 1 1 1 . . Autooverrided 1 | . . . . . . . . . . . . . . 1 . . Robots Rewired 52 | . . . . 12 . . . . . . . 31 . 1 . 8 Allies Hacked 7 | . . . . 5 . . . . . . . . 1 . . 1 Hacks Repelled . | . . . . . . . . . . . . . . . . . Allies | -11 -10 -10 -8 -8 -7 -7 -7 -7 -6 -6 -5 -5 -5 -5 -4 -4 -------- Run | Yrd Mat Sub Mat Gar Fac Gar Fac Gar Fac DSF Fac Gar Fac Gar Fac Ext Total Allies 114 | . . . . 12 8 5 11 3 . . . 43 2 9 5 16 Largest Group 27 | . . . . 6 6 2 8 2 . . . 23 23 27 17 12 Highest-Rated Group 1178 | . . . . 168 193 64 214 45 . . . 1048 1068 1178 773 521 Highest-Rated Ally 159 | . . . . 40 40 32 32 25 . . . 119 95 95 137 159 Total Orders 7 | . . . . . 2 . . . . . . 1 3 1 . . STAY 1 | . . . . . . . . . . . . 1 . . . . AID 4 | . . . . . . . . . . . . . 3 1 . . DROP 2 | . . . . . 2 . . . . . . . . . . . Ally Attacks 641 | . . . . 43 45 31 50 6 . . . 133 34 95 106 98 Total Damage 20769 | . . . . 760 945 340 1310 229 . . . 3941 1521 4954 3527 3242 Kills 149 | . . . . 9 18 5 15 . . . . 28 8 29 24 13 Allies Corrupted 7 | . . . . 2 . . 1 . . . . 2 . . 1 1 Allies Melted 1 | . . . . . . . . . . . . . . 1 . . Intel | -11 -10 -10 -8 -8 -7 -7 -7 -7 -6 -6 -5 -5 -5 -5 -4 -4 ------- Run | Yrd Mat Sub Mat Gar Fac Gar Fac Gar Fac DSF Fac Gar Fac Gar Fac Ext Robot Analysis Total 1 | . . . . . . . . . . . . . . . . 1 Derelict Logs Recovered 2 | . . 2 . . . . . . . . . . . . . . Drone Launches . | . . . . . . . . . . . . . . . . . Drone Recoveries . | . . . . . . . . . . . . . . . . . Exploration | -11 -10 -10 -8 -8 -7 -7 -7 -7 -6 -6 -5 -5 -5 -5 -4 -4 ------------- Run | Yrd Mat Sub Mat Gar Fac Gar Fac Gar Fac DSF Fac Gar Fac Gar Fac Ext Turns Passed 8754 | . 788 1265 162 1061 771 775 542 255 8 47 28 1522 257 604 268 401 Spaces Moved 7720 | 1 423 959 165 736 1075 394 292 367 30 69 54 1327 294 733 381 420 Core 121 | . . . . 10 . . . . . 17 . . . . . 94 Treads 393 | . 322 . . 69 . . . . . . . . . . . 2 Legs 512 | 1 85 . . 41 . 220 165 . . . . . . . . . Wheels 1048 | . 16 959 73 . . . . . . . . . . . . . Hover 118 | . . . 1 . . . . . . . . 117 . . . . Flight 5528 | . . . 91 616 1075 174 127 367 30 52 54 1210 294 733 381 324 Fastest Speed 11 | 120 90 80 23 11 23 17 26 26 26 26 29 26 31 31 25 27 Average Speed 62 | 120 149 97 69 83 27 151 116 26 26 33 29 34 36 36 33 36 Slowest Speed 450 | 120 160 115 240 450 109 330 360 26 26 50 29 120 42 110 91 165 Overloaded Moves 75 | . . . . 31 . 37 . . . . . . . . 7 . Propulsion Burnouts . | . . . . . . . . . . . . . . . . . Robots Hopped 35 | . . . . . 10 . . . . . . 5 . 11 1 8 Cave-ins Triggered . | . . . . . . . . . . . . . . . . . Exploration Rate (%) 38 | 2 48 53 14 59 30 72 12 49 1 58 2 99 7 91 11 50 Regions Visited 16 Branch Regions 2 Pre-discovered Areas 2 | . . 2 . . . . . . . . . . . . . . Known Exits Taken 6 | . . . 1 . 1 . 1 . 1 . 1 . 1 . . . Unknown Exits Taken 4 | 1 1 1 . . . . . . . . . . . . 1 . Scrap Searched 4 | . . 4 . . . . . . . . . . . . . . Spaces Dug 12 | . . 9 . 3 . . . . . . . . . . . . Terrain Destroyed 390 | . . 11 . 99 101 80 . . . . . 85 2 4 4 4 Melee 3 | . . . . 3 . . . . . . . . . . . . Projectile 37 | . . 11 . . 1 . . . . . . 11 2 4 4 4 AOE 350 | . . . . 96 100 80 . . . . . 74 . . . . Terrain Rammed . | . . . . . . . . . . . . . . . . . Walls Destroyed . | . . . . . . . . . . . . . . . . . Machines Disabled . | . . . . . . . . . . . . . . . . . Actions | -11 -10 -10 -8 -8 -7 -7 -7 -7 -6 -6 -5 -5 -5 -5 -4 -4 --------- Run | Yrd Mat Sub Mat Gar Fac Gar Fac Gar Fac DSF Fac Gar Fac Gar Fac Ext Total 10785 | . 514 1119 199 1109 1480 501 474 450 29 93 60 2239 428 1022 490 578 Wait 1407 | . 21 39 . 127 263 13 137 18 . 10 . 367 105 209 50 48 Move 7647 | . 422 958 164 735 1055 393 292 366 29 68 54 1316 293 717 378 407 Hop 25 | . . . . . 10 . . . . . . 5 . 4 1 5 Pick Up 69 | . 7 7 2 13 13 4 1 5 . 3 . 6 . 3 2 3 Fast Attach 123 | . 5 3 10 15 6 13 7 5 . 1 1 31 2 9 7 8 Attach 51 | . 2 1 1 9 6 4 2 1 . 3 . 10 . 2 5 5 Detach 44 | . . . 1 6 3 3 1 1 . 4 . 12 1 4 4 4 Swap 139 | . 13 12 4 9 21 11 9 6 . 1 . 20 6 10 8 9 Drop 115 | . 11 11 11 20 17 2 7 7 . 2 . 12 1 5 4 5 Fire 586 | . 27 81 4 44 78 40 17 41 . 1 . 118 18 46 21 50 Melee 71 | . 6 7 2 23 . . . . . . . 4 . . 9 20 Ram . | . . . . . . . . . . . . . . . . . Kick 1 | . . . . . . . 1 . . . . . . . . . Crush . | . . . . . . . . . . . . . . . . . Escape Stasis 114 | . . . . 35 . 18 . . . . . 53 . 8 . . Rewire 376 | . . . . 73 2 . . . . . . 279 2 5 1 14 Trap 9 | . . . . . 6 . . . . . . 3 . . . . Miscellaneous 8 | . . . . . . . . . . . 5 3 . . . . Route ------- -11/Scrapyard -10/Materials (discovered 3 exits: [*Mat] / [*Min] / *Sub) -10/Subcaves (discovered 2 exits: *Mat x2) -8/Materials (discovered 2 exits: Fac / Gar) -8/Garrison (discovered 3 exits: *Fac x3) -7/Factory -7/Garrison -7/Factory (discovered 2 exits: [*Low] / Gar) -7/Garrison -6/Factory -6/DSF -5/Factory -5/Garrison (discovered 3 exits: *Fac x3) -5/Factory (discovered 2 exits: *Fac / Gar) -5/Garrison (discovered 3 exits: *Fac x3) -4/Factory -4/Extension History --------- Turn | Location | Event 1 | -11/Scrapyard | Discovered new exit (range 0) 1 | -11/Scrapyard | Entered Materials 69 | -10/Materials | Discovered new exit (range 15) 301 | -10/Materials | Build established: Mutant 425 | -10/Materials | Discovered new exit (range 10) 509 | -10/Materials | Central database locked down 601 | -10/Materials | Derelicts attacked the area 774 | -10/Materials | Discovered new exit (range 9) 789 | -10/Materials | Entered Subcaves 789 | -10/Subcaves | Discovered new exit (range 8) 961 | -10/Subcaves | Learned location of Zion (-7) 961 | -10/Subcaves | Met a Zionite searching for "candidates" 965 | -10/Subcaves | Shifting Twisted Machinery released Sub. Monowheel 1028 | -10/Subcaves | Discovered new exit (range 9) 1032 | -10/Subcaves | Learned location of 1 exit from Materials 1074 | -10/Subcaves | Visited 4L-MR0's lab 1084 | -10/Subcaves | Found Gun Armor 1340 | -10/Subcaves | Core integrity fell below 50% 1405 | -10/Subcaves | Shifting Twisted Machinery released Sub. Optics 1420 | -10/Subcaves | Shifting Twisted Machinery released Battle Rifle 1560 | -10/Subcaves | Ambushed by Subdweller buried in earth 1712 | -10/Subcaves | Core integrity fell below 20% 2054 | -10/Subcaves | Entered Materials 2054 | -8/Materials | Evolved 4 slots: Propulsion x3, Utility x1 2055 | -8/Materials | Build established: Scavenger-Mutant 2055 | -8/Materials | Identified exit to Factory 2210 | -8/Materials | Identified exit to Garrison 2216 | -8/Materials | Entered Garrison 2230 | -8/Garrison | Triggered checkpoint 2255 | -8/Garrison | Installed Relay Interface Framework 2257 | -8/Garrison | Garrison Relay disabled 2276 | -8/Garrison | Triggered checkpoint 2318 | -8/Garrison | Lost 3 parts (3n) 2561 | -8/Garrison | Lost 6 allies 2654 | -8/Garrison | Discovered exit to Factory (range 13) 2654 | -8/Garrison | Discovered exit to Factory (range 55) 2654 | -8/Garrison | Discovered exit to Factory (range 91) 2691 | -8/Garrison | Garrison Relay disabled 2716 | -8/Garrison | Triggered checkpoint 2761 | -8/Garrison | Garrison Relay disabled 2904 | -8/Garrison | Garrison Relay disabled 2908 | -8/Garrison | Triggered checkpoint 2983 | -8/Garrison | P-60 Hacker assimilated allied Trooper 3b 3277 | -8/Garrison | Entered Factory 3277 | -7/Factory | Accompanied by 3 allies 3277 | -7/Factory | Evolved 2 slots: Utility x2 3433 | -7/Factory | Build established: Bothacker-Sprinter 3446 | -7/Factory | Fabricated M-14 Sweeper (x1) 3677 | -7/Factory | First assault squad dispatched 4036 | -7/Factory | Lost 3 parts (2n1u) 4039 | -7/Factory | Found Prototype Device 4048 | -7/Factory | Identified exit to Garrison 4048 | -7/Factory | Entered Garrison 4054 | -7/Garrison | Triggered checkpoint 4069 | -7/Garrison | Expanded RIF knowledge: Structural Interface 4073 | -7/Garrison | Garrison Relay disabled 4077 | -7/Garrison | Lost 6 allies 4100 | -7/Garrison | Triggered checkpoint 4144 | -7/Garrison | Lost 7 parts (1p4n1u1w) 4212 | -7/Garrison | Triggered checkpoint 4385 | -7/Garrison | Attached Gun Armor, gained temporary slots: Weapon x2 4463 | -7/Garrison | Triggered checkpoint 4531 | -7/Garrison | Core integrity fell below 50% 4610 | -7/Garrison | Garrison Relay disabled 4684 | -7/Garrison | Triggered checkpoint 4740 | -7/Garrison | Learned Factory security intel 4761 | -7/Garrison | Discovered new exit (range 2) 4823 | -7/Garrison | Entered Factory 4823 | -7/Factory | Accompanied by 2 allies 4843 | -7/Factory | Build established: Scavenger-Mutant 4896 | -7/Factory | Identified Active Sensor Suite 5005 | -7/Factory | Fabricated C-17 Slicer (x3) 5064 | -7/Factory | Fabricated C-17 Slicer (x3) 5122 | -7/Factory | Fabricated C-17 Slicer? 5258 | -7/Factory | Discovered new exit (range 14) 5351 | -7/Factory | Lost 7 allies 5351 | -7/Factory | Garrison activated, responded to threat 5365 | -7/Factory | Identified exit to Garrison 5365 | -7/Factory | Entered Garrison 5397 | -7/Garrison | Triggered checkpoint 5483 | -7/Garrison | Garrison Relay disabled 5494 | -7/Garrison | Garrison Relay disabled 5571 | -7/Garrison | Triggered checkpoint 5573 | -7/Garrison | Core integrity fell below 20% 5601 | -7/Garrison | Discovered new exit (range 15) 5606 | -7/Garrison | Rescued a captive Derelict 5607 | -7/Garrison | Rescued a captive Derelict 5620 | -7/Garrison | Entered Factory 5620 | -6/Factory | Evolved 2 slots: Propulsion x1, Utility x1 5628 | -6/Factory | Identified exit to DSF 5628 | -6/Factory | Entered DSF 5649 | -6/DSF | Additional patrols routed to DSF 5666 | -6/DSF | Lost 4 parts (1p1n2u) 5671 | -6/DSF | Discovered new exit (range 12) 5675 | -6/DSF | Entered Factory 5675 | -5/Factory | Evolved 2 slots: Utility x2 5703 | -5/Factory | Identified exit to Garrison 5703 | -5/Factory | Entered Garrison 5715 | -5/Garrison | Triggered checkpoint 5933 | -5/Garrison | Build established: Scout 5990 | -5/Garrison | Garrison Relay disabled 6149 | -5/Garrison | Discovered new exit (range 14) 6154 | -5/Garrison | Garrison Relay disabled 6171 | -5/Garrison | Lost 6 allies 6196 | -5/Garrison | Core integrity fell below 50% 6201 | -5/Garrison | Rewired Executioner 6208 | -5/Garrison | Rewired Executioner 6227 | -5/Garrison | Lost 7 parts (3n3u1w) 6244 | -5/Garrison | Phase Generator disabled 6281 | -5/Garrison | Garrison Relay disabled 6407 | -5/Garrison | Core integrity fell below 20% 6436 | -5/Garrison | Spotted Striker 6459 | -5/Garrison | Allies destroyed Striker 6462 | -5/Garrison | Spotted Striker 6467 | -5/Garrison | Destroyed Striker 6582 | -5/Garrison | Expanded RIF knowledge: Alert ID Control 6590 | -5/Garrison | Garrison Relay disabled 6594 | -5/Garrison | Lost 7 allies 6632 | -5/Garrison | Discovered new exit (range 11) 6788 | -5/Garrison | Garrison Relay disabled 6855 | -5/Garrison | Found embedded Infiltrators 6935 | -5/Garrison | Garrison Relay disabled 6945 | -5/Garrison | Discovered new exit (range 12) 6947 | -5/Garrison | Rescued a captive Derelict 6947 | -5/Garrison | Rescued a captive Derelict 6970 | -5/Garrison | Discovered new exit (range 69) 6970 | -5/Garrison | Discovered new exit (range 56) 6970 | -5/Garrison | Discovered new exit (range 13) 7225 | -5/Garrison | Entered Factory 7225 | -5/Factory | Accompanied by 22 allies 7227 | -5/Factory | Identified exit to Garrison 7334 | -5/Factory | System corruption reached 10% 7342 | -5/Factory | Discovered new exit (range 15) 7482 | -5/Factory | Entered Garrison 7482 | -5/Garrison | Accompanied by 23 allies 7490 | -5/Garrison | Garrison Relay disabled 7504 | -5/Garrison | Triggered checkpoint 7510 | -5/Garrison | Garrison Relay disabled 7518 | -5/Garrison | Build established: Commander-Mutant 7534 | -5/Garrison | Spotted B-75 Beast 7537 | -5/Garrison | Assimilated Beast 6a with formatsys_high 7544 | -5/Garrison | Triggered checkpoint 7545 | -5/Garrison | Triggered checkpoint 7556 | -5/Garrison | Triggered checkpoint 7576 | -5/Garrison | Discovered new exit (range 11) 7647 | -5/Garrison | Expanded RIF knowledge: Hotswap 7658 | -5/Garrison | Triggered checkpoint 7674 | -5/Garrison | Triggered checkpoint 7690 | -5/Garrison | Discovered new exit (range 74) 7690 | -5/Garrison | Discovered new exit (range 23) 7690 | -5/Garrison | Discovered new exit (range 25) 7705 | -5/Garrison | Spotted B-75 Beast 7727 | -5/Garrison | Destroyed B-75 Beast 7786 | -5/Garrison | Garrison Relay disabled 7828 | -5/Garrison | Spotted Executioner 7828 | -5/Garrison | Spotted Executioner 7838 | -5/Garrison | Triggered checkpoint 7911 | -5/Garrison | Local machine network offline 7979 | -5/Garrison | Lost 4 allies 8034 | -5/Garrison | Lost 6 allies 8086 | -5/Garrison | Entered Factory 8086 | -4/Factory | Accompanied by 16 allies 8086 | -4/Factory | Evolved 2 slots: Utility x2 8107 | -4/Factory | Identified exit to DSF 8186 | -4/Factory | Lost 8 allies 8306 | -4/Factory | Spotted B-86 Titan 8344 | -4/Factory | Discovered new exit (range 6) 8354 | -4/Factory | Entered Extension 8371 | -4/Extension | Lost 4 parts (2n2u) 8375 | -4/Extension | Disrupted transfer network 8381 | -4/Extension | Lost 11 allies 8385 | -4/Extension | Rescued a captive Derelict 8386 | -4/Extension | Rescued a captive Derelict 8421 | -4/Extension | Rescued A7 8472 | -4/Extension | Rescued a captive Derelict 8473 | -4/Extension | Rescued a captive Derelict 8502 | -4/Extension | Rescued a captive Derelict 8519 | -4/Extension | Lost 3 allies 8526 | -4/Extension | Spotted B-86 Titan 8570 | -4/Extension | Spotted B-86 Titan 8604 | -4/Extension | First assault squad dispatched 8611 | -4/Extension | Allies destroyed B-86 Titan 8615 | -4/Extension | Allies destroyed B-86 Titan 8638 | -4/Extension | Lost 5 allies 8680 | -4/Extension | Lost 5 parts (1p2n1u1w) 8714 | -4/Extension | Lost 7 allies 8718 | -4/Extension | Core integrity fell below 50% 8726 | -4/Extension | Lost 3 parts (2n1w) 8731 | -4/Extension | Core integrity fell below 20% 8755 | -4/Extension | Destroyed by G-67 Veteran with Plasma Rifle Last Messages --------------- 08698_ P-70 Sage resets G-73 Enforcer, system corruption cleaned. 08703_ Connecting with Door Terminal... 08703_ ALERT: Suspicious activity at Terminal E001. Dispatching Investigation squad. 08707_ P-70 Sage resets B-60 Warrior, system corruption cleaned. 08711_ System corrupted: Component data lost. 08715_ Acquired 1 matter. 08720_ P-70 Sage resets X-72 Disruptor, system corruption cleaned. 08721_ R-10 Processor collects Hrd. Medium Armor Plating. 08725_ RIF reveals location of hidden door. 08726_ Acquired Adv. System Shield. 08729_ Acquired 16 matter. 08730_ System corrupted: Matter fused (-8). 08730_ Acquired Cesium-ion Thruster. 08730_ Relay Coupler [NC] destroyed. 08731_ Cesium-ion Thruster destroyed. 08733_ Hacking Suite destroyed. 08734_ RIF reveals location of hidden door. 08735_ Acquired 91 matter. 08745_ System corrupted: Component data lost. Map ----- +----------------------------------------------------+ | ?????????????????????????????????????????????????? | | ?????????????????????????????????????????????????? | | ?????????????????????????????????????????????????? | | ?????????????????????????????????????????????????? | | ?????????????????????????????????????????????????? | | ?????????????????????????????????????????????????? | | ?????????????????????????????????????????????????? | | ?????????????????????????????????????????????????? | | ?????????????????????????????????????????????????? | | ?????????????????????????????????????????????????? | | ?????????????????????????????????????????????????? | | ?????????????????????????????????????????????????? | | ?????????????????????????????????????????????????? | | ?????????????????????????????????????????????????? | | ?????????????????????????????????????????????????? | | ?????????????????????????????????????????????????? | | ?????????????????????????????????????????????????? | | ?????????????????????????????????????????????????? | | ?????????????????????????????????????????????????? | | ?????????????????????????????????????????????????? | | ?????????????????????????????????????????????????? | | ?????????????????????????????????????????????????? | | ?????????????????????????????????????????????????? | | ?????????????????????????????????????????????????? | | ##################################???????????????? | | @ ????????? | | g ????????? | | g ????????? | | ?????????? | | g g ?????????? | | #######################################??????????? | | ?????????????????????????????????????????????????? | | ?????????????????????????????????????????????????? | | ?????????????????????????????????????????????????? | | ?????????????????????????????????????????????????? | | ?????????????????????????????????????????????????? | | ?????????????????????????????????????????????????? | | ?????????????????????????????????????????????????? | | | | | | | | | | | | | | | | | | | | | | | | | +----------------------------------------------------+ Best States ------------- Heat Dissipation 48 Coolant Potential 50 Energy Generation 25 Energy Capacity 350 Matter Stores 300 Matter Capacity 300 Sight Range 20 Robot Scan Range 20 Terrain Scan Density 10 ECM Strength 1 Jamming Range 12 Cloak Strength 4 Armor Coverage 150 Weapon Shielding 66 Phase Shifting 15 Evasion (%) 78 Targeting Accuracy 10 Melee Accuracy 5 Target Analysis 9 Recoil Reduction 3 Offensive Hacking 10 Defensive Hacking 14 Relay Coupler Types 7 Relay Coupler Value 202 Authchip Count 2 Item Schematics ----------------- Sub. Shrapnel Launcher | -8/Materials | Scanalyzed Multitool | -8/Materials | Scanalyzed Robot Schematics ------------------ C-17 Slicer | -7/Factory | Hacked B-48 Gladiator | -7/Factory | Hacked Fabricated ------------ M-14 Sweeper | x1 | -7/Factory | Preloaded C-17 Slicer | x3 | -7/Factory | Authchip C-17 Slicer | x3 | -7/Factory | Authchip C-17 Slicer | x3 | -7/Factory Alien Tech Used ----------------- None Achievements -------------- None Challenges ------------ None Game ------ Seed ForceSubdwellerStreamer Manual? 0 Play Time 01:43:50 Cumulative 909.2 hours Start 2024.08.30 @ 20:23:18 End 2024.08.30 @ 22:10:05 Sessions 1 Manual Loads 0 Difficulty Rogue Special Mode None Game No. 1096 Rogue 816 Adventurer 124 Explorer 156 Win Type - Total 39 Types 28/0/8/1/1/0/0/1/0 Lore% 79 Gallery% 89 Achievement% 78 Wizard Run 0 Options --------- Layout 0 ASCII 0 Keyboard 1 Movement Numpad Keybinds 0 Fullscreen 2 Font 18/X11 Map View 76x50 Zoom Use 0% Tactical HUD 1 Map Filters NONE Filters NONE Steam 1 RUN: dc9373e3-7ccd-41c0-96fd-00e0b5d4a673